[Event "Rodostosah WGM 2019"]
[Site "Tekirdag"]
[Date "2019.02.12"]
[Round "4.7"]
[White "Prohorov, Olexandr"]
[Black "Kocyigit, Buse Naz"]
[Result "0-1"]
[ECO "D94"]
[WhiteElo "2146"]
[BlackElo "2023"]
[Annotator "NA RC"]
[PlyCount "70"]
[EventDate "2019.02.08"]
[EventType "schev"]
[EventCountry "TUR"]
[SourceTitle "playchess.com"]
[Source "ChessBase"]
[SourceQuality "1"]
[TimeControl "5400+30"]

1. d4 {[%emt 0:00:30]} Nf6 {[%emt 0:03:30]} 2. Nf3 {[%emt 0:00:30]} g6 {[%emt 0:00:00]} 3. c4 {[%emt 0:00:30]} Bg7 {[%emt 0:00:00]} 4. Nc3 {[%emt 0:00:30]} d5 {[%emt 0:00:00]} 5. e3 {[%emt 0:00:30]} O-O $11 {[%emt 0:00:00] LiveBook: 1854 Games} 6. Be2 {[%emt 0:00:00]} c5 {[%emt 0:00:30]} 7. O-O {[%emt 0:03:00]} cxd4 {[%emt 0:00:30]} 8. Nxd4 {[%emt 0:00:30]} dxc4 {[%emt 0:11:30]} 9. Bxc4 {[%emt 0:00:00]} Qc7 {[%emt 0:05:30]} 10. Qe2 {[%emt 0:00:00]} a6 {[%emt 0:02:30]} 11. Bd2 {[%emt 0:04:30]} e5 {[%emt 0:00:30]} 12. Nb3 {[%emt 0:03:30]} e4 {[%emt 0:08:30]} 13. Nd5 {[%emt 0:08:30]} Nxd5 {[%emt 0:10:30]} 14. Bxd5 {[%emt 0:03:30]} Bxb2 {[%emt 0:14:30]} 15. Rab1 {[%emt 0:00:30]} Be5 {[%emt 0:00:30]} 16. Bxe4 {[%emt 0:00:30]} Nc6 {[%emt 0:08:30]} 17. f4 {[%emt 0:09:30]} Bd6 {[%emt 0:02:30]} 18. Bc3 {[%emt 0:01:30]} Re8 {[%emt 0:00:30]} 19. Nd2 {[%emt 0:06:30]} b5 {[%emt 0:10:11]} 20. Qf3 {[%emt 0:02:30]} Bb7 {[%emt 0:00:58]} 21. Rbc1 {[%emt 0:00:30]} Rac8 {[%emt 0:02:58]} 22. Bd5 {[%emt 0:04:30]} Qb6 {[%emt 0:00:59]} 23. Ne4 {[%emt 0:05:30]} Rxe4 {[%emt 0:01:46]} 24. Qxe4 {[%emt 0:00:30]} Bc5 {[%emt 0:01:58]} 25. f5 {[%emt 0:04:30]} Bxe3+ {[%emt 0:03:41]} 26. Kh1 {[%emt 0:00:00]} g5 {[%emt 0:03:40]} 27. Rce1 {[%emt 0:02:00]} Bc5 {[%emt 0:01:04]} 28. Qe8+ {[%emt 0:00:30]} Rxe8 {[%emt 0:00:51]} 29. Rxe8+ {[%emt 0:00:30]} Bf8 {[%emt 0:00:00]} 30. Bg7 {[%emt 0:05:30]} Kxg7 {[%emt 0:00:37]} 31. f6+ {[%emt 0:00:00]} Kg8 {[%emt 0:02:50]} 32. Rf5 {[%emt 0:01:00]} h6 {[%emt 0:00:38]} 33. h4 {[%emt 0:00:00]} Nd4 {[%emt 0:00:02]} 34. hxg5 {[%emt 0:00:00]} Nxf5 {[%emt 0:01:03]} 35. g6 {[%emt 0:00:30]} Bxd5 {[%emt 0:00:42]} 0-1

[Event "Rodostosah WGM 2019"]
[Site "Tekirdag"]
[Date "2019.02.12"]
[Round "4.8"]
[White "Shkuran, Danylo"]
[Black "Duran, Esma Doga"]
[Result "1-0"]
[ECO "A07"]
[WhiteElo "2368"]
[BlackElo "2005"]
[Annotator "NA RC"]
[PlyCount "75"]
[EventDate "2019.02.08"]
[EventType "schev"]
[EventCountry "TUR"]
[SourceTitle "playchess.com"]
[Source "ChessBase"]
[SourceQuality "1"]
[TimeControl "5400+30"]

1. Nf3 {[%emt 0:00:30]} d5 {[%emt 0:02:30]} 2. g3 {[%emt 0:00:30]} Nf6 {[%emt 0:00:30]} 3. Bg2 {[%emt 0:00:00]} Bg4 {[%emt 0:00:30]} 4. d3 {[%emt 0:00:00]} e6 {[%emt 0:00:30] LiveBook: 23 Games} 5. O-O {[%emt 0:00:30]} c5 {[%emt 0:00:30] A07: Réti Opening: New York and Capablanca Systems} 6. c4 {[%emt 0:02:30]} Nc6 {[%emt 0:00:30]} 7. Qa4 {[%emt 0:09:30]} Qd7 {[%emt 0:03:30]} 8. cxd5 {[%emt 0:02:30]} exd5 {[%emt 0:00:30]} 9. Bg5 {[%emt 0:00:30]} Be7 {[%emt 0:03:30]} 10. Nc3 {[%emt 0:01:30]} O-O $146 {[%emt 0:13:30]} ({Predecessor:} 10... d4 11. Bxf6 Bxf6 12. Ne4 Be7 13. Rac1 b6 {½-½ (30) Edouard,R (2628)-Cornette,M (2599) Cap d'Agde 2016}) 11. Bxf6 $1 {[%emt 0:06:30]} Bxf6 {[%emt 0:00:30]} 12. Nxd5 {[%emt 0:00:00]} Bxb2 {[%emt 0:00:00]} 13. Rab1 {[%emt 0:00:00]} Bxf3 {[%emt 0:00:00]} 14. Bxf3 {[%emt 0:00:30]} Be5 {[%emt 0:00:30]} 15. Ne3 {[%emt 0:05:30]} Rab8 {[%emt 0:18:30]} 16. Nc4 {[%emt 0:06:30]} Bf6 {[%emt 0:01:30]} 17. Na5 {[%emt 0:05:30]} Qc7 {[%emt 0:16:30]} 18. Bxc6 {[%emt 0:01:30]} bxc6 {[%emt 0:00:30]} 19. Rxb8 {[%emt 0:03:30]} Rxb8 {[%emt 0:00:30]} 20. Nxc6 {[%emt 0:00:30]} Rb2 {[%emt 0:08:30]} 21. Qe4 {[%emt 0:11:30]} g6 {[%emt 0:02:30]} 22. Rc1 {[%emt 0:13:30]} Qd6 {[%emt 0:15:03]} 23. a4 {[%emt 0:03:30]} a6 {[%emt 0:02:10]} 24. Na5 {[%emt 0:01:30]} Rb4 {[%emt 0:03:33]} 25. Rc4 $16 {[%emt 0:03:30]} Qb6 {[%emt 0:01:18]} 26. Rxb4 {[%emt 0:01:30]} cxb4 {[%emt 0:01:26]} 27. Nb3 {[%emt 0:01:03]} Bg7 {[%emt 0:01:49]} 28. Qc4 {[%emt 0:07:14]} Bf8 {[%emt 0:01:36]} 29. e4 {[%emt 0:00:23]} Kg7 {[%emt 0:00:37]} 30. Qd4+ {[%emt 0:03:05]} Qxd4 {[%emt 0:00:02]} 31. Nxd4 {[%emt 0:00:04]} Kf6 {[%emt 0:00:10]} 32. Kf1 {[%emt 0:00:07]} Ke5 {[%emt 0:00:36]} 33. Nc6+ {[%emt 0:01:11]} Ke6 {[%emt 0:00:10]} 34. Ke2 {[%emt 0:00:21]} f5 {[%emt 0:00:20]} 35. f3 {[%emt 0:00:55]} fxe4 {[%emt 0:00:29]} 36. fxe4 {[%emt 0:00:50]} Bd6 {[%emt 0:00:49]} 37. d4 {[%emt 0:01:48]} Kd7 {[%emt 0:00:06]} 38. d5 {[%emt 0:00:59]} 1-0

[Event "Rodostosah WGM 2019"]
[Site "Tekirdag"]
[Date "2019.02.13"]
[Round "5.6"]
[White "Caglar, Sila"]
[Black "Prohorov, Olexandr"]
[Result "1-0"]
[ECO "B15"]
[WhiteElo "2062"]
[BlackElo "2146"]
[Annotator "NA"]
[PlyCount "119"]
[EventDate "2019.02.08"]
[EventType "schev"]
[EventCountry "TUR"]
[SourceTitle "playchess.com"]
[Source "ChessBase"]
[SourceQuality "1"]
[TimeControl "5400+30"]

1. e4 g6 2. d4 Bg7 3. Nc3 c6 4. Be3 d5 5. Nf3 dxe4 6. Nxe4 Nd7 7. Bc4 Ngf6 8. Ng3 O-O 9. Qd2 b5 10. Bb3 a5 $11 11. a4 Nb6 12. Ne5 Qc7 13. O-O e6 14. Bf4 Qb7 15. axb5 cxb5 16. Rxa5 Rxa5 17. Qxa5 Nbd5 18. Bd2 h5 19. h4 Ne7 20. Bg5 Nc6 21. Qc3 Bd7 22. Qf3 Ng4 23. Nxg4 hxg4 24. Qxg4 Nxd4 25. h5 Nxb3 26. cxb3 f5 27. Qh4 Be8 28. Re1 Qf7 29. h6 Bxb2 30. Ne2 Kh7 31. Nf4 Bd7 32. Rd1 Rc8 33. Nh3 Be8 34. Bd8 Kh8 35. Ng5 Qg8 36. h7 Qg7 37. Nxe6 Qxh7 38. Bf6+ Kg8 39. Qxh7+ Kxh7 40. Bxb2 Rc2 41. Be5 Re2 42. Ng5+ Kh6 43. Bf4 Kh5 44. f3 Kh6 45. Rd8 Kg7 46. Rd2 Re1+ 47. Kf2 Rb1 48. Re2 Bc6 49. Re7+ Kg8 50. Rc7 Bd5 51. Be5 Kf8 52. b4 Ke8 53. Bd6 Kd8 54. Rg7 f4 55. Bxf4 Rxb4 56. Rxg6 Bc4 57. Be5 Rb1 58. Rg7 b4 59. Ne4 Rc1 60. Bf6+ 1-0

[Event "Rodostosah WGM 2019"]
[Site "Tekirdag"]
[Date "2019.02.13"]
[Round "5.8"]
[White "Duran, Esma Doga"]
[Black "Brankovic, Dejan"]
[Result "1-0"]
[ECO "E16"]
[WhiteElo "2005"]
[BlackElo "2318"]
[Annotator "NA"]
[PlyCount "87"]
[EventDate "2019.02.08"]
[EventType "schev"]
[EventCountry "TUR"]
[SourceTitle "playchess.com"]
[Source "ChessBase"]
[SourceQuality "1"]
[TimeControl "5400+30"]

1. d4 Nf6 2. c4 e6 3. Nf3 b6 4. g3 Bb4+ 5. Nbd2 Bb7 6. Bg2 O-O 7. O-O h6 {LiveBook: 6 Games} 8. Qc2 Bxd2 9. Bxd2 Be4 10. Qd1 d6 11. Bc3 Qe7 12. Nd2 Bxg2 13. Kxg2 $11 c5 14. e4 cxd4 15. Bxd4 Nc6 16. Bc3 e5 17. Qe2 Rfe8 18. Rfe1 Rac8 19. Rad1 Nd7 20. Nf1 Nf6 21. Ne3 Qe6 22. Nd5 Ne7 23. f4 Nexd5 24. cxd5 Qd7 25. Rc1 Nh7 26. fxe5 dxe5 27. h4 Nf6 28. Rf1 Qd6 29. Rf3 Nd7 30. Rcf1 Rf8 31. Rf5 g6 32. R5f2 h5 33. g4 hxg4 34. Qxg4 Kg7 35. h5 Rc7 36. Qg5 Rc4 37. Rf6 Nxf6 38. Bxe5 Rc2+ 39. Kh1 Qd7 40. Qxf6+ Kh6 41. Qg7+ Kxh5 42. Qh7+ Kg4 43. Rf4+ Kg3 44. Qh4# 1-0

[Event "Rodostosah WGM 2019"]
[Site "Tekirdag"]
[Date "2019.02.13"]
[Round "5.9"]
[White "Anacoglu, Cisel"]
[Black "Eric, Jovana"]
[Result "0-1"]
[ECO "B03"]
[WhiteElo "1962"]
[BlackElo "2222"]
[Annotator "ChessBase"]
[PlyCount "118"]
[EventDate "2019.02.08"]
[EventType "schev"]
[EventCountry "TUR"]
[SourceTitle "playchess.com"]
[Source "ChessBase"]
[SourceQuality "1"]
[TimeControl "5400+30"]

1. e4 Nf6 2. e5 Nd5 3. d4 d6 4. c4 Nb6 5. exd6 exd6 6. Nc3 Be7 7. Bd3 Nc6 8. Nge2 Bg4 9. Be3 O-O 10. O-O Nb4 11. f3 Nxd3 12. Qxd3 Bc8 13. b3 g6 14. d5 Nd7 15. Qd2 Re8 16. Nd4 Bf6 17. Rad1 Ne5 18. Ne4 Bg7 19. Bh6 Bh8 20. Qf4 f6 21. Qg3 Nf7 22. Bc1 Bd7 23. h4 Bg7 24. Rfe1 Nh6 25. Bxh6 Bxh6 26. h5 f5 27. Nf2 Qf6 28. Rxe8+ Rxe8 29. hxg6 hxg6 30. f4 Bg7 31. Kf1 c5 32. dxc6 bxc6 33. Qg5 Qxg5 34. fxg5 d5 35. cxd5 cxd5 36. Nf3 Bb5+ 37. Kg1 Bc6 38. Kf1 Kf7 39. Nd4 Bb7 40. Nb5 Bf8 41. Nd3 a6 42. Nd4 Bd6 43. Re1 Re4 44. Nf3 a5 45. Nde5+ Kg7 46. Kf2 Bc5+ 47. Kg3 Bd6 48. Kf2 d4 49. Nc4 Bc5 50. Ncd2 Re3 51. Nc4 f4 52. Nxe3 fxe3+ 53. Kg3 d3 54. Rc1 Bd6+ 55. Kh4 d2 56. Nxd2 exd2 57. Rd1 Bb4 58. a3 Bc3 59. Kg3 Bd5 0-1

[Event "Rodostosah WGM 2019"]
[Site "Tekirdag"]
[Date "2019.02.13"]
[Round "5.10"]
[White "Sade, Defne"]
[Black "Dimitrijevic, Aleksandra"]
[Result "1/2-1/2"]
[ECO "B07"]
[WhiteElo "1916"]
[BlackElo "2175"]
[Annotator "NA"]
[PlyCount "73"]
[EventDate "2019.02.08"]
[EventType "schev"]
[EventCountry "TUR"]
[SourceTitle "playchess.com"]
[Source "ChessBase"]
[SourceQuality "1"]
[TimeControl "5400+30"]

1. e4 d6 2. d4 Nf6 3. Nc3 e5 4. dxe5 dxe5 5. Qxd8+ Kxd8 6. Bc4 Be6 7. Bxe6 fxe6 8. Nf3 Bd6 9. Bg5 Nc6 10. O-O-O {LiveBook: 9 Games} Ke7 11. a3 a6 12. Rd2 {B07: Pirc Defence: Miscellaneous Systems} h6 13. Bh4 b5 $146 (13... g5 $5 14. Bg3 $8 Rad8 $11) ({Predecessor:} 13... Raf8 14. Bxf6+ Rxf6 15. h4 Rhf8 16. Nd1 Rf4 17. Re2 Rg4 18. Ne3 Rxe4 19. Nd2 Ref4 {½-½ (49) Romieux,S (2277)-Guidarelli,L (2433) France 2009}) 14. Rhd1 Rhb8 15. Bxf6+ gxf6 16. Ne2 a5 (16... b4 $15 17. a4 b3) 17. Rd3 Rg8 $11 18. Ng3 a4 19. c3 Na5 20. Ne1 Raf8 21. Kb1 Nc4 22. f3 Rd8 23. Nf1 f5 24. Ne3 f4 25. Nxc4 bxc4 26. R3d2 Bc5 27. Rxd8 Rxd8 28. Rxd8 Kxd8 29. Kc2 Bg1 30. h3 Ke7 31. Kd1 Kf6 32. Nc2 c5 33. Ke2 Kg5 34. Kf1 Bh2 35. Kf2 Bg3+ 36. Kf1 Bh4 37. Kg1 1/2-1/2

[Event "Rodostosah WGM 2019"]
[Site "Tekirdag"]
[Date "2019.02.13"]
[Round "6.6"]
[White "Shkuran, Danylo"]
[Black "Caglar, Sila"]
[Result "1-0"]
[ECO "B22"]
[WhiteElo "2368"]
[BlackElo "2062"]
[Annotator "NA"]
[PlyCount "69"]
[EventDate "2019.02.08"]
[EventType "schev"]
[EventCountry "TUR"]
[SourceTitle "playchess.com"]
[Source "ChessBase"]
[SourceQuality "1"]
[TimeControl "5400+30"]

1. e4 c5 2. c3 Nf6 3. e5 Nd5 4. d4 cxd4 5. Nf3 g6 (5... Nc6 6. cxd4 d6 7. Bc4 Nb6 8. Bb5 Bd7 9. exd6 e6 10. Bg5 f6 11. Be3 Bxd6 12. Nc3 Nb4 13. Be2 N4d5 14. O-O O-O 15. Bd3 Rc8 16. Rc1 Be8 17. Nxd5 Nxd5 18. Rxc8 Qxc8 {0-1 (26) Potkin,V (2597)-Nepomniachtchi,I (2763) Moscow 2018}) 6. Qxd4 {LiveBook: 32 Games B22: Sicilian: 2 c3} Nb6 7. Qh4 Bg7 $146 ({Predecessor:} 7... Nc6 8. Na3 h6 9. Bd3 Bg7 10. Qg3 d6 11. exd6 O-O {1-0 (55) Fressinet,L (2662)-Brodowski,P (2430) Katowice 2017}) 8. Bh6 O-O 9. Bd3 f6 10. Na3 fxe5 11. O-O-O d6 12. Be3 Qe8 13. Ng5 h6 14. Nh3 Qa4 15. Qxe7 Bf5 $2 (15... Nc6 $1 $11 16. Qxd6 Rf6) 16. Bxf5 gxf5 17. Rxd6 f4 18. Bxb6 axb6 19. Rhd1 ({But not} 19. Rxb6 Rf7 $18) 19... Nc6 20. Qxb7 Nd4 21. Rd7 Nf5 22. Qd5+ Kh8 23. g4 fxg3 24. hxg3 Rfc8 $18 (24... Qg4) 25. Qf3 Nd4 26. R1xd4 exd4 27. Qf7 Rg8 28. Nf4 dxc3 29. Ng6+ Kh7 30. Qf5 cxb2+ 31. Kb1 Qd1+ 32. Rxd1 Rgd8 33. Rxd8 Rxd8 34. Ne5+ Kg8 35. Nd3 1-0

[Event "Rodostosah WGM 2019"]
[Site "Tekirdag"]
[Date "2019.02.13"]
[Round "6.7"]
[White "Brankovic, Dejan"]
[Black "Kocyigit, Buse Naz"]
[Result "1-0"]
[ECO "A08"]
[WhiteElo "2318"]
[BlackElo "2023"]
[Annotator "ChessBase"]
[PlyCount "79"]
[EventDate "2019.02.08"]
[EventType "schev"]
[EventCountry "TUR"]
[SourceTitle "playchess.com"]
[Source "ChessBase"]
[SourceQuality "1"]
[TimeControl "5400+30"]

1. Nf3 Nf6 2. g3 g6 3. Bg2 Bg7 4. O-O O-O 5. d3 d5 6. Nbd2 c5 7. c3 Nc6 8. e4 e5 9. exd5 Nxd5 10. Re1 h6 11. Nc4 Re8 12. Qb3 Nc7 13. a4 Rb8 14. Nfd2 Be6 15. Qc2 Bd5 16. Bf1 f5 17. Ne3 Bf7 18. h4 Nd5 19. Nf3 f4 20. Nc4 g5 21. Bh3 Bg6 22. Ncd2 Ndb4 23. cxb4 Nxb4 24. Qc4+ Bf7 25. Qe4 Nxd3 26. Rd1 c4 27. Nxc4 Nxf2 28. Rxd8 Nxe4 29. Rxb8 Rxb8 30. Ncxe5 Nxg3 31. hxg5 Bxe5 32. Nxe5 hxg5 33. Nxf7 Kxf7 34. Bd2 Rd8 35. Be1 Rd3 36. Bg4 Kg6 37. Rd1 Rb3 38. Rd6+ Kh7 39. Bc3 a6 40. Bd1 1-0

[Event "Rodostosah WGM 2019"]
[Site "Tekirdag"]
[Date "2019.02.13"]
[Round "6.8"]
[White "Eric, Jovana"]
[Black "Duran, Esma Doga"]
[Result "1-0"]
[ECO "C00"]
[WhiteElo "2222"]
[BlackElo "2005"]
[Annotator "NA"]
[PlyCount "63"]
[EventDate "2019.02.08"]
[EventType "schev"]
[EventCountry "TUR"]
[SourceTitle "playchess.com"]
[Source "ChessBase"]
[SourceQuality "1"]
[TimeControl "5400+30"]

1. e4 e6 2. d3 d5 3. Nd2 Nc6 4. c3 Nf6 5. Ngf3 dxe4 6. dxe4 e5 {C00: French: Unusual White 2nd moves} 7. b4 Bd6 8. Qc2 a5 $146 ({Predecessor:} 8... O-O 9. Nc4 a5 10. b5 Nb8 11. h3 Nbd7 12. Be3 Bc5 13. Rd1 Qe7 14. Be2 Bxe3 15. Nxe3 {0-1 (57) Czebe,A (2484)-Torma,R (2492) Budapest 2017}) 9. b5 Ne7 10. Nc4 Ng6 11. Nxd6+ Qxd6 12. Be2 O-O 13. a4 c5 14. O-O b6 15. Re1 Bb7 16. Bc4 Rad8 17. Bg5 h6 18. Rad1 Qe7 19. Bxf6 Qxf6 20. Bd5 Bxd5 21. exd5 Rfe8 22. Qe4 Qd6 (22... Qf4 $1 $11 {keeps the balance.}) 23. h4 $14 (23. Nd2 $16) 23... Qd7 24. h5 f5 25. Qc4 e4 26. hxg6 exf3 27. d6+ Kh8 28. Qf7 Rf8 29. Re7 Rxf7 30. gxf7 Qxe7 31. dxe7 Rxd1+ 32. Kh2 1-0

[Event "Rodostosah WGM 2019"]
[Site "Tekirdag"]
[Date "2019.02.13"]
[Round "6.9"]
[White "Dimitrijevic, Aleksandra"]
[Black "Anacoglu, Cisel"]
[Result "0-1"]
[ECO "C44"]
[WhiteElo "2175"]
[BlackElo "1962"]
[Annotator "NA"]
[PlyCount "122"]
[EventDate "2019.02.08"]
[EventType "schev"]
[EventCountry "TUR"]
[SourceTitle "playchess.com"]
[Source "ChessBase"]
[SourceQuality "1"]
[TimeControl "5400+30"]

1. e4 e5 2. Nf3 Nc6 3. Be2 g6 4. O-O {C44: Ponziani Opening and Scotch Gambit} Bg7 5. c3 Nf6 6. d3 h6 (6... O-O 7. b4 a6 8. Nbd2 Re8 9. Bb2 d5 10. a4 Bg4 11. b5 Na5 12. h3 Bxf3 13. Bxf3 dxe4 14. dxe4 {½-½ (74) Movsesian,S (2653)-Wang,Y (2718) Huaian 2016}) 7. b4 a6 $146 ({Predecessor:} 7... d6 8. Qc2 O-O 9. Re1 Nh5 10. b5 Nb8 11. d4 Qf6 12. dxe5 dxe5 {½-½ (12) Weiss,W (2189)-Rudnizki,S (2165) Germany 2014}) 8. Re1 O-O 9. a3 d5 10. Nbd2 Kh7 11. Qc2 dxe4 12. dxe4 Nh5 13. Nc4 f5 14. Rd1 Qf6 15. Bd3 f4 16. Ne1 g5 17. a4 g4 18. f3 Qg6 (18... g3 $5 {[%cal Rg3h2]} 19. h3 Be6 $15) 19. Nd2 Bf6 20. fxg4 Bxg4 21. Ndf3 Ng7 (21... Be7 $11) 22. Ba3 Rh8 23. b5 axb5 24. axb5 Nd8 25. Bc5 Rxa1 26. Rxa1 Nge6 27. Bf2 Rg8 28. Bf1 Nf7 29. Ra7 Nd6 30. c4 Nxe4 31. Bh4 N6c5 32. Kh1 Ng5 $2 (32... Bxf3 33. Bxf6 Bd1) 33. Nxg5+ hxg5 $19 ({Resist} 33... Bxg5 34. Bf2 $17) 34. Bf2 Ne4 35. Rxb7 Bf5 36. Rxc7+ Kh8 37. Kg1 Nd6 38. Qb2 Ne8 39. Rc6 Be4 40. Ra6 Nc7 41. Rd6 Ne8 42. Rb6 g4 43. Bh4 Qf5 44. Qf2 Bg7 45. Be7 Qh5 46. Rb8 Bh6 47. Qh4 Qxh4 48. Bxh4 Nc7 49. Bf6+ Bg7 50. Bxg7+ Kxg7 51. Rxg8+ Kxg8 52. c5 Ne6 53. c6 Nc5 54. c7 Bb7 55. Bd3 e4 56. Be2 f3 57. Bc4+ Kf8 58. Kf2 Ke7 59. Bd5 Bc8 60. Ke3 Kd6 61. Kd4 f2 0-1

[Event "Rodostosah WGM 2019"]
[Site "Tekirdag"]
[Date "2019.02.13"]
[Round "6.10"]
[White "Prohorov, Olexandr"]
[Black "Sade, Defne"]
[Result "1-0"]
[ECO "D18"]
[WhiteElo "2146"]
[BlackElo "1916"]
[Annotator "NA"]
[PlyCount "75"]
[EventDate "2019.02.08"]
[EventType "schev"]
[EventCountry "TUR"]
[SourceTitle "playchess.com"]
[Source "ChessBase"]
[SourceQuality "1"]
[TimeControl "5400+30"]

1. d4 d5 2. c4 c6 3. Nf3 Nf6 4. Nc3 dxc4 5. a4 Bf5 6. e3 e6 7. Bxc4 Bb4 8. O-O Nbd7 9. Qb3 a5 10. Na2 c5 {D18: Slav Defence: 5 a4 Bf5 6 e3} (10... Be7 11. Qxb7 Rb8 12. Qa6 Ra8 13. Qxc6 Rc8 14. Qa6 Ra8 15. Qc6 Rc8 16. Qa6 Ra8 17. Qc6 Rc8 {½-½ (17) Rozum,I (2573)-Volkov,S (2568) Khanty-Mansiysk 2018}) 11. Nxb4 cxb4 12. Bd3 Bxd3 13. Qxd3 O-O 14. Rd1 $146 ({Predecessor:} 14. Qb5 Qb6 15. Qxb6 Nxb6 16. Bd2 Rac8 17. b3 Ne4 18. Rfc1 {1-0 (56) Studnicka,T-Cervinka,M (2119) Czechia 2000}) 14... Rc8 15. e4 Qc7 16. e5 Nd5 17. Ng5 Qc2 18. Qf3 N7b6 19. Rd2 Qg6 20. h4 h6 21. Ne4 Nc4 22. Rd3 $15 ({White should try} 22. Re2 $11) 22... f6 23. Qe2 fxe5 24. Rg3 Qh7 25. Nc5 b6 26. Nxe6 Rf7 27. b3 Nc3 28. Rxc3 bxc3 29. bxc4 Qf5 30. d5 e4 31. Be3 Rf6 32. Rc1 Rg6 33. Rxc3 Qf6 34. Bd4 Qxh4 35. Be5 Qe7 36. Qxe4 Qe8 37. Qf5 Kh7 38. Nf4 1-0

[Event "Rodostosah WGM 2019"]
[Site "Tekirdag"]
[Date "2019.02.15"]
[Round "8.6"]
[White "Eric, Jovana"]
[Black "Caglar, Sila"]
[Result "1-0"]
[ECO "B20"]
[WhiteElo "2222"]
[BlackElo "2062"]
[Annotator "NA"]
[PlyCount "67"]
[EventDate "2019.02.08"]
[EventType "schev"]
[EventCountry "TUR"]
[SourceTitle "playchess.com"]
[Source "ChessBase"]
[SourceQuality "1"]
[TimeControl "5400+30"]

1. e4 {[%emt 0:00:30]} c5 {[%emt 0:05:30]} 2. d3 {[%emt 0:00:00]} g6 {[%emt 0:01:30]} 3. g3 {[%emt 0:01:00]} Bg7 {[%emt 0:00:30]} 4. Bg2 {[%emt 0:00:00]} Nc6 {[%emt 0:01:30]} 5. f4 {[%emt 0:00:00]} e6 {[%emt 0:04:30]} 6. Nf3 {[%emt 0:03:30]} d5 {[%emt 0:02:30]} 7. Nbd2 {[%emt 0:03:30]} Nge7 {[%emt 0:03:30]} 8. O-O {[%emt 0:01:30]} O-O {[%emt 0:00:30]} 9. c3 {[%emt 0:01:30]} Rb8 {[%emt 0:03:30]} 10. exd5 {[%emt 0:04:30]} exd5 {[%emt 0:04:30]} 11. Re1 {[%emt 0:03:30]} Bf5 {[%emt 0:05:30]} 12. Nb3 {[%emt 0:08:30]} d4 {[%emt 0:05:30]} 13. cxd4 {[%emt 0:02:30]} cxd4 {[%emt 0:02:30]} 14. Nc5 {[%emt 0:03:30]} Re8 {[%emt 0:07:30]} 15. Nh4 {[%emt 0:05:30]} Qa5 {[%emt 0:10:30]} 16. Ne4 {[%emt 0:08:30]} Be6 {[%emt 0:03:30]} 17. Bd2 {[%emt 0:05:30]} Qb6 {[%emt 0:01:30]} 18. g4 {[%emt 0:12:30]} Rbd8 {[%emt 0:05:30]} 19. f5 {[%emt 0:03:30]} gxf5 {[%emt 0:00:30]} 20. gxf5 {[%emt 0:03:30]} Nxf5 {[%emt 0:01:30]} 21. Bg5 {[%emt 0:04:30]} Ne3 {[%emt 0:04:30]} 22. Qe2 {[%emt 0:00:30]} Rd5 {[%emt 0:03:30]} 23. Nf6+ {[%emt 0:02:30]} Bxf6 {[%emt 0:00:30]} 24. Bxf6 {[%emt 0:00:30]} Ne7 {[%emt 0:05:14]} 25. Bxd5 {[%emt 0:04:43]} Bxd5 {[%emt 0:00:02]} 26. Rf1 {[%emt 0:01:33]} Ng6 {[%emt 0:07:16]} 27. Nf5 {[%emt 0:01:25]} Qe6 {[%emt 0:02:58]} 28. Ng7 {[%emt 0:02:27]} Qh3 {[%emt 0:06:30]} 29. Nxe8 {[%emt 0:00:42]} Nf5 {[%emt 0:01:17]} 30. Be5 {[%emt 0:03:59]} Bc6 {[%emt 0:00:57]} 31. Nf6+ {[%emt 0:00:11]} Kf8 {[%emt 0:00:00]} 32. Nxh7+ {[%emt 0:02:40]} Qxh7 {[%emt 0:00:27]} 33. Rxf5 {[%emt 0:00:05]} Qh4 {[%emt 0:00:46]} 34. Raf1 {[%emt 0:01:07]} 1-0

[Event "Rodostosah WGM 2019"]
[Site "Tekirdag"]
[Date "2019.02.15"]
[Round "8.7"]
[White "Dimitrijevic, Aleksandra"]
[Black "Kocyigit, Buse Naz"]
[Result "1-0"]
[ECO "D72"]
[WhiteElo "2175"]
[BlackElo "2023"]
[Annotator "NA"]
[PlyCount "71"]
[EventDate "2019.02.08"]
[EventType "schev"]
[EventCountry "TUR"]
[SourceTitle "playchess.com"]
[Source "ChessBase"]
[SourceQuality "1"]
[TimeControl "5400+30"]

1. d4 {[%emt 0:00:30]} Nf6 {[%emt 0:05:30]} 2. c4 {[%emt 0:03:30]} g6 {[%emt 0:00:30]} 3. g3 {[%emt 0:00:30]} Bg7 {[%emt 0:00:30]} 4. Bg2 {[%emt 0:00:00]} d5 {[%emt 0:00:30]} 5. cxd5 {[%emt 0:01:00]} Nxd5 {[%emt 0:00:30]} 6. e4 {[%emt 0:00:30]} Nb6 {[%emt 0:00:00]} 7. Ne2 {[%emt 0:00:00]} c5 {[%emt 0:03:00]} 8. d5 {[%emt 0:00:00]} e6 {[%emt 0:16:30]} 9. Nbc3 {[%emt 0:02:30]} exd5 {[%emt 0:00:30]} 10. exd5 {[%emt 0:00:00]} O-O {[%emt 0:01:30]} 11. O-O {[%emt 0:02:00]} Bf5 {[%emt 0:07:30]} 12. Be3 {[%emt 0:05:30]} Na6 {[%emt 0:01:30]} 13. b3 {[%emt 0:02:30]} Qd7 {[%emt 0:08:30]} 14. Re1 {[%emt 0:02:30]} Rac8 {[%emt 0:04:30]} 15. a3 {[%emt 0:06:30]} h6 {[%emt 0:07:30]} 16. Qd2 {[%emt 0:02:30]} Kh7 {[%emt 0:00:00]} 17. Rad1 {[%emt 0:00:30]} Rfe8 {[%emt 0:01:00]} 18. Nf4 {[%emt 0:04:30]} c4 {[%emt 0:12:30]} 19. b4 {[%emt 0:03:30]} Na4 {[%emt 0:00:30]} 20. Bd4 {[%emt 0:10:30]} Bxd4 {[%emt 0:03:30]} 21. Qxd4 {[%emt 0:00:00]} Nxc3 {[%emt 0:04:30]} 22. Qxc3 {[%emt 0:00:00]} Nc7 {[%emt 0:04:22]} 23. Qxc4 {[%emt 0:12:30]} Nb5 {[%emt 0:00:11]} 24. Qf1 {[%emt 0:01:30]} Nxa3 {[%emt 0:01:01]} 25. h3 {[%emt 0:02:30]} Qd6 {[%emt 0:04:10]} 26. Re3 {[%emt 0:04:30]} Rxe3 {[%emt 0:05:49]} 27. fxe3 {[%emt 0:00:00]} Qxb4 {[%emt 0:03:46]} 28. g4 {[%emt 0:02:00]} Bc2 {[%emt 0:02:26]} 29. Nh5 {[%emt 0:00:30]} Qe7 {[%emt 0:01:55]} 30. d6 {[%emt 0:00:00]} Qxe3+ {[%emt 0:00:23]} 31. Kh1 {[%emt 0:00:00]} gxh5 {[%emt 0:00:25]} 32. Qxf7+ {[%emt 0:00:30]} Kh8 {[%emt 0:00:02]} 33. d7 {[%emt 0:00:00]} Rd8 {[%emt 0:00:53]} 34. Qf6+ {[%emt 0:00:00]} Kh7 {[%emt 0:00:30]} 35. Qxd8 {[%emt 0:00:30]} Bxd1 {[%emt 0:00:04]} 36. Qe8 {[%emt 0:00:00]} 1-0